bitfinex/quotes_SOLUSD_20251201
["timestamp","ask_amount","ask_price","bid_price","bid_amount"]
[1764625527710,3.13185281,126.28,126.26,16.73996301]
[1764625527912,3.13185281,126.29,126.26,16.73996301]
[1764625528433,3.13185281,126.27,126.26,8.82]
[1764625529739,11.0513903,126.27,126.26,8.82]
[1764625530116,30.85023404,126.27,126.22,7.92243834]
[1764625530317,3.13185281,126.26,126.23,8.82]
[1764625531352,11.05218761,126.26,126.23,8.82]
[1764625531718,11.05218761,126.26,126.24,8.82]
[1764625532336,3.13185281,126.26,126.24,8.82]
[1764625533842,3.13185281,126.25,126.24,8.82]
[1764625534038,19.44071681,126.25,126.18,0.2]
[1764625534236,3.13185281,126.19,126.18,0.2]
[1764625534441,4.90742465,126.2,126.18,9.02]
[1764625534942,4.90742465,126.2,126.18,16.94512768]
[1764625535237,4.90742465,126.24,126.18,16.94512768]
[1764625535238,7.92097624,126.25,126.19,4.90742465]
[1764625535544,4.90742465,126.26,126.22,4.90742465]
[1764625535743,4.90742465,126.26,126.23,8.82]
[1764625536122,16.308864,126.27,126.23,8.82]
[1764625536323,4.90742465,126.26,126.23,8.82]
[1764625536537,24.22840149,126.27,126.23,8.82]
[1764625536538,4.90742465,126.24,126.23,8.82]
[1764625537142,4.90742465,126.24,126.18,67.70618605]
[1764625537351,12.82929994,126.24,126.2,7.92393026]
[1764625537717,4.90742465,126.24,126.2,7.92393026]
[1764625538351,4.90742465,126.25,126.2,27.73375593]
[1764625538743,4.90742465,126.24,126.2,27.73375593]
[1764625539248,4.90742465,126.25,126.2,27.73375593]
[1764625539454,12.82823809,126.25,126.2,27.73375593]
[1764625540634,4.90742465,126.24,126.2,27.73375593]
[1764625540833,12.82823809,126.25,126.2,27.73375593]
[1764625541223,4.90742465,126.24,126.2,27.73375593]
[1764625543551,7.92081344,126.25,126.2,27.73375593]
[1764625543850,12.82823809,126.25,126.2,32.64118058]
[1764625545552,4.90742465,126.24,126.2,27.73375593]
[1764625546047,4.90742465,126.24,126.19,7.92430313]
[1764625546048,4.90742465,126.21,126.19,7.92430313]
[1764625546418,12.82892369,126.24,126.2,8.82]
[1764625546624,4.90742465,126.21,126.2,8.82]
[1764625547735,12.83097836,126.21,126.2,8.82]
[1764625548749,7.92355371,126.21,126.2,8.82]
[1764625548938,12.83097836,126.21,126.2,8.82]
[1764625550256,13.71736957,126.22,126.2,8.82]
[1764625551654,21.64041486,126.22,126.2,8.82]
[1764625552042,4.90742465,126.21,126.2,8.82]
[1764625552638,12.83072708,126.21,126.2,8.82]
[1764625553256,12.83072708,126.21,126.18,8.12487783]
[1764625553432,4.90742465,126.21,126.19,8.82]
[1764625554358,4.90742465,126.2,126.19,8.82]
[1764625555963,29.1386113,126.23,126.19,16.74431091]
[1764625556266,29.1386113,126.23,126.19,21.65173556]
[1764625556451,7.92232265,126.23,126.19,21.65173556]
[1764625556652,12.82902984,126.24,126.19,41.46313107]
[1764625557167,19.79916882,126.27,126.19,36.55570642]
[1764625557353,8.80994492,126.26,126.22,4.90742465]
[1764625557556,16.73010965,126.26,126.23,8.82]
[1764625557752,21.6375343,126.26,126.23,8.82]
[1764625558871,21.21628865,126.27,126.23,16.74185283]
[1764625559060,16.308864,126.27,126.23,41.45439512]
[1764625559663,12.82600559,126.29,126.24,4.90742465]
[1764625559855,16.72784656,126.3,126.25,4.90742465]
[1764625560060,16.72784656,126.3,126.26,13.72742465]
[1764625560368,21.63527121,126.3,126.26,8.82]
[1764625560560,7.91790164,126.3,126.26,8.82]
[1764625560739,7.91790164,126.3,126.26,13.72742465]
[1764625560940,29.13361435,126.31,126.27,7.91953749]
[1764625562567,29.13361435,126.31,126.27,12.82696214]
[1764625562568,24.2261897,126.31,126.27,12.82696214]
[1764625563140,29.13361435,126.31,126.27,7.91953749]
[1764625564976,4.90742465,126.29,126.27,7.91953749]
[1764625565168,4.90742465,126.3,126.28,8.82]
[1764625566165,4.90742465,126.29,126.28,8.82]
[1764625566885,7.91772785,126.3,126.28,8.82]
[1764625567069,4.90742465,126.29,126.28,8.82]
[1764625567275,12.82600384,126.29,126.25,7.92079207]
[1764625567576,4.90742465,126.27,126.26,8.82]
[1764625567758,4.90742465,126.28,126.26,8.82]
[1764625568276,12.82635047,126.28,126.26,8.82]
[1764625568982,8.80994492,126.26,126.2,19.80945353]
[1764625569294,4.90742465,126.27,126.22,4.90742465]
[1764625569581,24.22778982,126.28,126.24,4.90742465]
[1764625569776,24.22778982,126.28,126.25,8.82]
[1764625569983,29.13521447,126.28,126.25,8.82]
[1764625571062,4.90742465,126.3,126.26,4.90742465]
[1764625571378,8.80994492,126.33,126.25,21.64812331]
[1764625571559,21.21628865,126.3,126.25,21.64812331]
[1764625572271,16.308864,126.3,126.26,4.90742465]
[1764625572473,12.82453717,126.31,126.27,4.90742465]
[1764625572659,12.82453717,126.31,126.28,8.82]
[1764625573368,7.91711252,126.31,126.28,8.82]
[1764625573564,12.82382743,126.32,126.28,8.82]
[1764625573769,29.13269143,126.32,126.28,8.82]
[1764625574276,29.13269143,126.32,126.28,16.73886734]
[1764625574478,7.91598855,126.33,126.28,21.64629199]
[1764625574675,12.8234132,126.33,126.28,21.64629199]
[1764625575369,7.91598855,126.33,126.28,21.64629199]
[1764625575675,12.8234132,126.33,126.28,21.64629199]
[1764625576887,12.82427877,126.32,126.28,8.82]
[1764625577184,4.90742465,126.29,126.25,19.80095175]
[1764625577478,4.90742465,126.29,126.26,8.82]
[1764625577884,4.90742465,126.3,126.26,8.82]
[1764625578063,12.82554979,126.3,126.26,16.74016473]
[1764625579185,7.91812514,126.3,126.26,16.74016473]
[1764625579390,12.82554979,126.3,126.26,16.74016473]
[1764625579777,4.90742465,126.27,126.23,19.80470903]
[1764625580094,4.90742465,126.27,126.24,8.82]
[1764625580966,7.91845298,126.29,126.24,13.72742465]
[1764625581467,12.82587763,126.29,126.24,13.72742465]
[1764625581670,4.90742465,126.28,126.25,7.92079207]
[1764625581871,4.90742465,126.28,126.24,8.82]
[1764625581872,12.82686525,126.28,126.24,16.74122787]
[1764625582071,4.90742465,126.26,126.25,8.82]
[1764625582685,4.90742465,126.26,126.22,7.92233343]
[1764625582887,4.90742465,126.26,126.23,8.82]
[1764625583770,12.82799088,126.26,126.23,8.82]
[1764625585592,12.82799088,126.26,126.24,8.82]
[1764625586897,12.82799088,126.26,126.22,7.92233343]
[1764625587201,4.90742465,126.25,126.23,8.82]
[1764625587691,12.82884416,126.24,126.2,7.92393026]
[1764625587876,12.82884416,126.24,126.21,8.82]
[1764625589194,4.90742465,126.22,126.19,7.9245582]
[1764625589496,4.90742465,126.22,126.17,24.72078815]
[1764625589497,4.90742465,126.21,126.2,8.82]
[1764625589877,4.90742465,126.22,126.2,8.82]
[1764625590481,16.308864,126.19,126.18,0.2]
[1764625590681,37.95079177,126.19,126.18,0.2]
[1764625590880,21.21628865,126.19,126.18,0.2]
[1764625591093,29.14084685,126.19,126.18,0.2]
[1764625593295,37.95079177,126.19,126.18,0.2]
[1764625593487,42.85821642,126.19,126.18,0.2]
[1764625593685,43.00037799,126.19,126.18,0.2]
[1764625594608,38.09295334,126.19,126.18,0.2]
[1764625595779,33.04336712,126.19,126.18,0.2]
[1764625596101,37.95079177,126.19,126.18,0.2]
[1764625596504,48.89482229,126.19,126.18,0.2]
[1764625596703,16.308864,126.16,126.15,0.2]
[1764625596874,36.18711025,126.16,126.15,0.2]
[1764625597518,36.32927182,126.16,126.15,0.2]
[1764625597815,36.32927182,126.16,126.08,0.2]
[1764625597816,25.11880892,126.09,126.08,0.2]
[1764625597979,28.26066764,126.09,126.08,0.2]
[1764625598179,28.40282921,126.09,126.08,0.2]
[1764625598408,34.00429336,126.09,126.08,0.2]
[1764625598998,41.9351364,126.09,126.08,0.2]
[1764625599315,41.9351364,126.09,126.04,9.02]
[1764625599316,8.95210649,126.08,126.04,0.2]
[1764625599609,26.43875223,126.08,126.04,0.2]
[1764625599807,25.26097049,126.06,126.04,0.2]
[1764625600025,34.00429336,126.06,126.04,0.2]
[1764625600883,41.9370238,126.06,126.04,0.2]
[1764625601302,8.95210649,126.05,126.04,0.2]
[1764625601509,17.69542936,126.05,126.04,0.2]
[1764625602416,25.11880892,126.02,126.01,0.2]
[1764625602710,33.86213179,126.02,126.01,0.2]
[1764625603022,33.05405729,126.02,126.01,0.2]
[1764625603189,41.79738016,126.02,126.01,0.2]
[1764625607539,33.05405729,126.02,126.01,0.2]
[1764625608027,41.79738016,126.02,126.01,0.2]
[1764625610433,16.308864,126.02,126.01,0.2]
[1764625611008,8.74332287,126.03,126.01,0.2]
[1764625611218,16.308864,126.04,126.01,0.2]
[1764625611425,8.74332287,126.03,126.01,0.2]
[1764625612106,8.74332287,126.02,126.01,0.2]
[1764625612508,33.86213179,126.02,126.01,0.2]
[1764625612712,16.308864,125.98,125.93,0.2]
[1764625613017,8.74332287,125.95,125.94,8.84]
[1764625615521,8.74332287,125.96,125.94,8.84]
[1764625615921,17.55326779,125.97,125.94,8.84]
[1764625616101,16.308864,125.97,125.94,8.84]
[1764625616297,8.74332287,125.97,125.94,8.84]
[1764625616526,8.74332287,125.95,125.94,8.84]
[1764625617013,16.308864,125.98,125.94,17.58332287]
[1764625617205,25.05218687,125.98,125.94,8.84]
[1764625617602,8.74332287,125.98,125.94,8.84]
[1764625618119,8.74332287,125.98,125.94,16.77982957]
[1764625618828,16.68110315,125.98,125.94,16.77982957]
[1764625619403,8.74332287,125.97,125.93,0.2]
[1764625619606,8.74332287,125.97,125.94,8.84]
[1764625619807,7.93778028,125.98,125.94,8.84]
[1764625620027,8.74332287,125.97,125.94,8.84]
[1764625620209,8.74332287,125.95,125.93,0.2]
[1764625620416,8.74332287,125.94,125.93,0.2]
[1764625620606,8.74332287,125.94,125.93,9.04]
[1764625620922,8.74332287,125.95,125.93,0.2]
[1764625621128,8.74332287,125.95,125.93,9.04]
[1764625621445,8.74332287,125.94,125.93,9.04]
[1764625622126,7.93987715,125.95,125.93,9.04]
[1764625622326,16.68320002,125.95,125.94,8.84]
[1764625623122,8.74332287,125.95,125.94,8.84]
[1764625623423,16.68235113,125.96,125.94,8.84]
[1764625623831,7.93902826,125.96,125.94,8.84]
[1764625624017,16.68235113,125.96,125.94,8.84]
[1764625624423,16.68109076,125.98,125.94,16.77994734]
[1764625624612,8.74332287,125.97,125.94,16.77994734]
[1764625625130,16.68109076,125.98,125.94,16.77994734]
[1764625626416,8.74332287,125.97,125.94,16.77994734]
[1764625627218,16.68109076,125.98,125.94,16.77994734]
[1764625628040,44.96227358,125.99,125.94,25.52327021]
[1764625628041,32.98943285,125.99,125.94,25.52327021]
[1764625628837,8.74332287,125.98,125.94,25.52327021]
[1764625629335,8.74332287,125.98,125.94,16.77994734]
[1764625630836,16.68109795,125.98,125.94,25.52327021]
[1764625631515,16.68109795,125.98,125.95,8.84]
[1764625631516,8.74332287,125.96,125.95,8.84]
[1764625632338,8.74332287,125.97,125.95,8.84]
[1764625636477,16.68184348,125.97,125.95,8.84]
[1764625638135,16.68184348,125.97,125.94,7.94015158]
[1764625638333,16.68184348,125.97,125.96,8.84]
[1764625638935,8.74332287,125.97,125.96,8.84]
[1764625639834,8.74332287,125.97,125.94,7.94015158]
[1764625640115,32.98939909,125.99,125.96,8.84]
[1764625641726,32.98939909,125.99,125.96,8.84]
[1764625642517,7.93646831,126.01,125.97,8.74332287]
[1764625642739,16.67979118,126.01,125.97,8.74332287]
[1764625643847,16.67979118,126.01,125.97,16.681278]
[1764625644351,7.93646831,126.01,125.97,16.681278]
[1764625645350,8.74332287,126.02,125.98,8.74332287]
[1764625645652,16.67747949,126.04,126.0,8.74332287]
[1764625645850,16.67747949,126.04,126.0,16.67930445]
[1764625646228,16.67747949,126.04,126.0,7.93598158]
[1764625646454,8.74332287,126.03,126.01,8.84]
[1764625648050,8.74332287,126.02,125.99,7.93713786]
[1764625648349,8.74332287,126.01,126.0,8.84]
[1764625648664,16.67814076,126.03,126.0,8.84]
[1764625649247,16.67920097,126.01,126.0,8.84]
[1764625650025,19.83654685,126.03,126.0,8.84]
[1764625650026,16.67826064,126.03,126.0,8.84]
[1764625650646,16.67826064,126.03,126.0,16.77638374]
[1764625650853,16.67636518,126.06,126.01,8.74332287]
[1764625651033,16.67636518,126.06,126.02,8.74332287]
[1764625651034,7.93304231,126.06,126.02,8.74332287]
[1764625651225,7.93304231,126.06,126.03,8.84]
[1764625651627,8.74332287,126.05,126.03,8.84]
[1764625652249,8.74332287,126.04,125.99,8.74332287]
[1764625652443,27.76486842,126.06,126.0,16.77612414]
[1764625652641,8.74332287,126.03,126.0,16.77612414]
[1764625653048,8.74332287,126.04,126.0,25.51944701]
[1764625653250,8.74332287,126.04,126.0,45.36071685]
[1764625656361,4.91930663,126.04,126.0,16.77612414]
[1764625657642,4.91930663,126.04,126.0,21.69543077]
[1764625658559,12.85319697,126.05,126.0,21.69543077]
[1764625658761,4.91930663,126.04,126.0,21.69543077]
[1764625659539,12.85341235,126.04,126.0,21.69543077]
[1764625660855,4.91930663,126.03,126.01,8.84]
[1764625661445,4.91930663,126.02,125.99,19.84226729]
[1764625661645,4.91930663,126.02,126.0,8.84]
[1764625661851,12.8539869,126.03,126.0,16.77648429]
[1764625662561,7.93468027,126.03,126.01,8.84]
[1764625662762,4.91930663,126.02,126.01,8.84]
[1764625663750,27.77122712,126.03,126.01,8.84]
[1764625663954,32.69053375,126.03,126.01,8.84]
[1764625664446,27.76752329,126.05,126.02,4.91930663]
[1764625665055,7.93386067,126.05,126.02,4.91930663]
[1764625665568,7.93386067,126.05,125.97,24.76454011]
[1764625665569,4.91930663,126.03,125.97,24.76454011]
[1764625665752,27.76726011,126.05,125.99,4.91930663]
[1764625665951,7.93461874,126.03,126.0,4.91930663]
[1764625666152,7.93461874,126.03,126.01,8.84]
[1764625667082,4.91930663,126.02,125.99,7.93668223]
[1764625667283,4.91930663,126.02,126.0,8.84]
[1764625668489,13.70656591,126.02,126.0,8.84]
[1764625670073,13.70656591,126.02,126.01,8.84]
[1764625672461,8.80994492,125.99,125.93,0.2]
[1764625672664,41.48036092,126.02,125.93,0.2]
[1764625672665,30.01542991,126.02,125.97,13.70656591]
[1764625672866,16.308864,126.02,125.98,22.54656591]
[1764625673359,16.308864,126.02,125.98,30.48373419]
[1764625673775,7.93529266,126.02,125.98,30.48373419]
[1764625674191,13.70656591,125.99,125.94,16.308864]
[1764625674353,13.70656591,125.99,125.95,8.84]
[1764625674954,13.70656591,125.99,125.94,30.01542991]
[1764625675186,13.70656591,126.0,125.95,13.70656591]
[1764625675478,13.70656591,125.98,125.96,8.84]
[1764625675688,13.70656591,125.98,125.97,8.84]
[1764625676560,8.80994492,125.99,125.93,13.90656591]
[1764625676888,13.70656591,125.98,125.94,22.54656591]
[1764625677183,13.70656591,125.98,125.94,8.84]
[1764625677363,30.45370236,125.99,125.94,30.48624253]
[1764625678190,16.74713645,125.99,125.95,13.70656591]
[1764625678482,13.70656591,126.0,125.96,13.70656591]
[1764625678791,13.70656591,126.0,125.97,8.84]
[1764625679655,13.70656591,126.0,125.97,16.77835119]
[1764625679854,13.70656591,126.0,125.98,8.84]
[1764625680263,13.70656591,125.99,125.94,33.55728847]
[1764625680468,7.93667946,126.0,125.96,13.70656591]
[1764625680668,21.64324537,126.0,125.95,22.54656591]
[1764625680870,7.93667946,126.0,125.95,22.54656591]
[1764625681087,13.70656591,125.99,125.95,22.54656591]
[1764625681381,13.70656591,125.99,125.95,30.48600916]
[1764625682562,21.64324537,126.0,125.95,30.48600916]
[1764625682971,7.93667946,126.0,125.95,30.48600916]
[1764625683173,13.70656591,125.99,125.95,30.48600916]
[1764625684295,21.64324537,126.0,125.95,30.48600916]
[1764625684589,7.93667946,126.0,125.96,13.70656591]
[1764625684761,21.64324537,126.0,125.96,13.70656591]
[1764625685094,21.64324537,126.0,125.95,30.48600916]
[1764625686064,13.70656591,125.99,125.95,30.48600916]
[1764625686374,22.51651083,125.98,125.93,13.90656591]
[1764625686560,13.70656591,125.97,125.94,8.84]
[1764625687166,21.64558341,125.97,125.94,8.84]
[1764625687371,13.70656591,125.96,125.93,0.2]
[1764625687571,13.70656591,125.96,125.94,8.84]
[1764625688160,13.70656591,125.96,125.93,0.2]
[1764625688371,12.86409202,125.97,125.94,8.84]
[1764625688684,7.93744409,125.99,125.95,4.92538466]
[1764625689065,12.86282875,125.99,125.95,4.92538466]
[1764625689666,12.86282875,125.99,125.95,12.86469137]
[1764625690084,27.78028876,125.99,125.93,0.2]
[1764625690269,4.92538466,125.94,125.93,0.2]
[1764625690468,4.92538466,125.94,125.93,9.04]
[1764625690678,8.80994492,125.95,125.93,9.04]
[1764625690983,13.73532958,125.94,125.93,0.2]
[1764625691300,18.80287581,125.94,125.93,0.2]
[1764625691591,35.11173981,125.94,125.93,0.2]
[1764625691773,46.23661543,125.94,125.93,0.2]
[1764625691968,29.92775143,125.94,125.93,0.2]
[1764625692386,16.308864,125.91,125.89,8.84]
[1764625692667,16.308864,125.91,125.88,0.2]
[1764625692668,30.04486316,125.91,125.88,0.2]
[1764625692877,30.04486316,125.91,125.89,8.84]
[1764625693078,13.73599916,125.9,125.89,8.84]
[1764625693283,13.73599916,125.9,125.88,0.2]
[1764625693493,16.308864,125.91,125.89,8.84]
[1764625693669,13.73599916,125.9,125.89,8.84]
[1764625693872,16.308864,125.91,125.89,8.84]
[1764625694279,13.73599916,125.92,125.89,16.78335833]
[1764625694607,8.80994492,125.92,125.88,9.04]
[1764625694900,13.73599916,125.92,125.88,30.72004621]
[1764625695094,24.24993469,125.93,125.88,50.58023051]
[1764625695095,30.04486316,125.93,125.88,50.58023051]
[1764625695666,13.73599916,125.94,125.9,7.94281175]
[1764625695867,16.308864,125.95,125.9,21.67881091]
[1764625696091,13.73599916,125.94,125.9,41.53584029]
[1764625696289,13.73599916,125.94,125.91,8.84]
[1764625696516,13.73599916,125.93,125.89,7.94318973]
[1764625696690,13.73599916,125.93,125.9,8.84]
[1764625698495,21.67709874,125.93,125.9,8.84]
[1764625698671,13.73599916,125.93,125.9,16.78277258]
[1764625699278,16.308864,125.95,125.9,30.51877174]
[1764625699482,13.73599916,125.94,125.9,30.51877174]
[1764625699665,16.308864,125.95,125.91,13.73599916]
[1764625699880,16.308864,125.95,125.92,13.73599916]
[1764625700081,30.04486316,125.95,125.93,8.84]
[1764625700576,37.98467515,125.95,125.93,8.84]
[1764625702778,13.73599916,125.98,125.94,13.73599916]
[1764625702993,21.67376705,125.98,125.94,13.73599916]
[1764625703693,7.93776789,125.98,125.95,13.73599916]
[1764625703906,7.93776789,125.98,125.96,8.84]
[1764625705795,16.308864,125.99,125.97,13.73599916]
[1764625706099,16.308864,125.99,125.92,27.79432684]
[1764625706100,16.74771281,125.98,125.92,27.79432684]
[1764625706395,16.308864,125.99,125.96,13.73599916]
[1764625706396,7.93738694,125.99,125.96,13.73599916]
[1764625706582,7.93738694,125.99,125.97,8.84]
[1764625706779,27.77831964,126.0,125.97,8.84]
[1764625706980,44.08718364,126.0,125.97,8.84]
[1764625707401,57.8231828,126.0,125.97,8.84]
[1764625708600,24.24537193,126.0,125.97,22.57599916]
[1764625708900,37.98137109,126.0,125.97,8.84]
[1764625709681,37.98137109,126.0,125.98,8.84]
[1764625709882,13.73599916,125.99,125.98,8.84]
[1764625710284,13.73599916,125.99,125.94,7.94011182]
[1764625710285,8.80994492,125.98,125.94,7.94011182]
[1764625710499,22.54594408,125.98,125.95,8.84]
[1764625710878,30.48405201,125.98,125.95,8.84]
[1764625711182,16.74805285,125.98,125.95,8.84]
[1764625712199,30.48405201,125.98,125.95,8.84]
[1764625712594,16.74805285,125.98,125.95,8.84]
[1764625712980,30.04486316,126.0,125.96,13.73599916]
[1764625713397,22.54594408,125.98,125.94,21.67597564]
[1764625713587,22.54594408,125.98,125.95,8.84]
[1764625714300,13.73599916,125.97,125.95,8.84]
[1764625714490,13.73436522,125.98,125.95,8.84]
[1764625715096,21.6725597,125.98,125.95,8.84]
[1764625716403,19.89956753,125.98,125.95,8.84]
[1764625717305,16.7481394,125.98,125.95,16.77964498]
[1764625717507,16.7481394,125.98,125.95,8.84]
[1764625718003,16.7481394,125.98,125.95,11.99142813]
[1764625718706,16.74772344,125.98,125.96,11.99142813]
[1764625719042,16.74772344,125.98,125.97,8.84]
[1764625719204,39.88573288,125.98,125.95,8.84]
[1764625719403,8.80994492,125.97,125.95,8.84]
[1764625719712,11.96137305,125.97,125.95,8.84]
[1764625721307,7.93894625,125.97,125.95,8.84]
[1764625721880,7.93894625,125.97,125.95,11.99142813]
[1764625722290,27.78218763,125.98,125.95,11.99142813]
[1764625723198,27.78218763,125.98,125.95,8.84]
[1764625723403,30.93361576,125.98,125.95,8.84]
[1764625724714,3.15142813,125.96,125.91,7.94218092]
[1764625724884,3.15142813,125.95,125.92,8.84]
[1764625725888,11.96137305,125.93,125.88,0.2]
[1764625726095,3.15142813,125.9,125.89,8.84]
[1764625726294,3.15142813,125.9,125.88,0.2]
[1764625726498,11.96137305,125.89,125.88,0.2]
[1764625726703,20.0469773,125.89,125.88,0.2]
[1764625727518,20.0469773,125.89,125.88,1e-08]
[1764625727519,32.65268982,125.89,125.88,1e-08]
[1764625727814,116.49268982,125.89,125.88,1e-08]
[1764625728508,109.50822301,125.89,125.88,1e-08]
[1764625728812,16.89554917,125.89,125.88,1e-08]
[1764625729027,25.66822301,125.89,125.88,1e-08]
[1764625730223,25.66822301,125.89,125.86,1e-08]
[1764625730434,109.03364433,125.87,125.86,1e-08]
[1764625730813,8.77267384,125.83,125.8,8.84]
[1764625731144,8.77267384,125.82,125.78,0.2]
[1764625731301,8.77267384,125.79,125.78,0.2]
[1764625731497,17.58261876,125.79,125.78,0.2]
[1764625731702,17.72478033,125.79,125.78,0.2]
[1764625732139,167.72478033,125.79,125.78,1e-08]
[1764625732301,167.72478033,125.79,125.77,1e-08]
[1764625732302,16.90249605,125.78,125.77,1e-08]
[1764625732507,175.26097049,125.77,125.76,1e-08]
[1764625732730,192.80631817,125.77,125.76,1e-08]
[1764625732929,34.03364433,125.77,125.76,1e-08]
[1764625733323,25.26097049,125.77,125.76,1e-08]
[1764625733916,25.11880892,125.77,125.76,1e-08]
[1764625735915,33.06983062,125.77,125.76,1e-08]
[1764625736226,41.84250446,125.77,125.76,1e-08]
[1764625738517,25.11880892,125.77,125.76,1e-08]
[1764625738919,16.308864,125.77,125.76,1e-08]
[1764625739125,16.72201102,125.8,125.76,1e-08]
[1764625739324,8.80994492,125.79,125.76,1e-08]
[1764625739723,7.9485868,125.81,125.77,8.77267384]
[1764625740032,8.80994492,125.81,125.78,17.61267384]
[1764625740234,8.80994492,125.81,125.78,8.84]
[1764625740612,16.75853448,125.81,125.78,17.61267384]
[1764625740819,33.02954351,125.82,125.78,25.56300816]
[1764625741039,16.308864,125.82,125.79,8.77267384]
[1764625741215,16.75736912,125.83,125.8,8.77267384]
[1764625741641,8.77267384,125.82,125.79,8.84]
[1764625741834,16.75736912,125.83,125.79,17.61267384]
[1764625742138,16.75736912,125.83,125.8,8.77267384]
[1764625742343,16.75736912,125.83,125.79,17.61267384]
[1764625742527,25.53004296,125.83,125.79,17.61267384]
[1764625742839,16.75736912,125.83,125.8,8.77267384]
[1764625743339,16.308864,125.84,125.81,8.77267384]
[1764625743532,27.8236583,125.86,125.83,8.77267384]
[1764625743837,7.94594602,125.86,125.84,17.61267384]
[1764625744233,7.94594602,125.86,125.84,8.84]
[1764625744434,16.71861986,125.86,125.82,7.94723875]
[1764625744738,16.71861986,125.86,125.83,8.84]
[1764625745439,7.94484074,125.87,125.84,8.77267384]
[1764625745640,7.94484074,125.87,125.83,16.78707785]
[1764625745641,24.25310091,125.88,125.85,8.77267384]
[1764625745820,24.25310091,125.88,125.86,8.77267384]
[1764625746020,16.308864,125.88,125.87,17.61267384]
[1764625746646,16.308864,125.88,125.87,8.84]
[1764625748318,7.94316919,125.9,125.87,8.77267384]
[1764625748525,24.25203319,125.9,125.88,8.84]
[1764625749129,24.25203319,125.9,125.88,17.61267384]
[1764625749537,16.75212584,125.91,125.88,17.61267384]
[1764625749822,16.75212584,125.91,125.88,8.84]
[1764625750729,8.77267384,125.9,125.88,8.84]
[1764625751147,25.52479968,125.91,125.88,8.84]
[1764625751935,16.75212584,125.91,125.88,8.84]
[1764625752446,16.75212584,125.91,125.88,17.61267384]
[1764625752631,16.308864,125.92,125.9,8.77267384]
[1764625752828,16.75047865,125.94,125.91,17.61267384]
[1764625753552,8.80994492,125.94,125.92,8.77267384]
[1764625753733,8.80994492,125.94,125.91,17.61267384]
[1764625753935,16.75029247,125.94,125.91,17.61267384]
[1764625754128,8.80994492,125.94,125.92,8.77267384]
[1764625754540,16.308864,125.95,125.92,8.77267384]
[1764625754752,16.308864,125.94,125.93,8.77267384]
[1764625754964,8.77267384,125.98,125.93,8.77267384]
[1764625755251,8.77267384,125.98,125.91,16.78201409]
[1764625755252,16.308864,125.96,125.94,17.61267384]
[1764625755749,24.24810269,125.96,125.94,8.84]
[1764625756444,16.308864,125.96,125.94,8.84]
[1764625756759,16.74834295,125.97,125.94,8.84]
[1764625756931,7.93839803,125.97,125.94,17.61267384]
[1764625757132,8.80994492,125.97,125.94,17.61267384]
[1764625757337,16.308864,125.97,125.95,8.77267384]
[1764625757546,16.7479483,125.98,125.95,8.77267384]
[1764625757851,33.0568123,125.98,125.95,8.77267384]
[1764625758634,16.90950387,126.0,125.95,16.71225453]
[1764625758833,8.80994492,125.99,125.95,16.71225453]
[1764625759939,7.93776789,125.98,125.95,16.71225453]
[1764625760448,7.93776789,125.98,125.96,8.77267384]
[1764625760643,7.93722226,125.99,125.97,17.61267384]
[1764625760951,16.7098961,125.99,125.94,16.71288185]
[1764625761153,8.77267384,125.98,125.95,8.84]
[1764625762034,16.71056378,125.98,125.95,8.84]
[1764625762750,7.93788994,125.98,125.95,8.84]
[1764625763161,16.71056378,125.98,125.94,16.71288185]
[1764625763452,16.71056378,125.98,125.95,8.84]
[1764625764731,7.93788994,125.98,125.95,8.84]
[1764625766455,7.93788994,125.98,125.95,7.295]
[1764625767459,16.71056378,125.98,125.95,7.295]
[1764625767628,16.71056378,125.98,125.96,8.84]
[1764625768030,7.93788994,125.98,125.96,8.84]
[1764625769530,11.08902314,125.98,125.96,8.84]
[1764625769937,9.58902314,125.98,125.96,8.84]
[1764625770931,6.43788994,125.98,125.96,8.84]
[1764625771333,15.24783486,125.98,125.97,8.84]
[1764625771659,18.39896806,125.98,125.97,8.84]
[1764625772541,18.39896806,125.98,125.96,8.84]
[1764625772843,0.2,126.0,125.97,3.1511332]
[1764625772844,9.00994492,126.0,125.97,3.1511332]
[1764625774338,16.94666219,126.0,125.97,3.1511332]